[Event "Live Chess"]
[Site "Chess.com"]
[Date "2023.05.21"]
[Round "-"]
[White "Biranidun"]
[Black "WelshTiger"]
[Result "1-0"]
[WhiteElo "2530"]
[BlackElo "2310"]
[TimeControl "300"]
[EndTime "4:44:38 PDT"]
[Termination "Biranidun won by checkmate"]

1. e4 {[%clk 0:04:58.8]} 1... c5 {[%clk 0:04:55.7]} 2. Nf3 {[%clk 0:04:57.5]}
2... d6 {[%clk 0:04:55.2]} 3. d4 {[%clk 0:04:56.5]} 3... cxd4 {[%clk 0:04:55.1]}
4. Nxd4 {[%clk 0:04:56.3]} 4... Nf6 {[%clk 0:04:53.9]} 5. Nc3 {[%clk 0:04:55.8]}
5... Nc6 {[%clk 0:04:53.5]} 6. Bg5 {[%clk 0:04:54.7]} 6... Bd7 {[%clk
0:04:52.1]} 7. Qd2 {[%clk 0:04:53.9]} 7... Rc8 {[%clk 0:04:50.7]} 8. f4 {[%clk
0:04:52.1]} 8... Nxd4 {[%clk 0:04:49.4]} 9. Qxd4 {[%clk 0:04:52]} 9... Qa5
{[%clk 0:04:48.5]} 10. e5 {[%clk 0:04:51.4]} 10... dxe5 {[%clk 0:04:45.2]} 11.
fxe5 {[%clk 0:04:51.3]} 11... e6 {[%clk 0:04:43.7]} 12. O-O-O {[%clk 0:04:50.1]}
12... Bc6 {[%clk 0:04:42.4]} 13. Nb5 {[%clk 0:04:46.7]} 13... Bxb5 {[%clk
0:04:32.6]} 14. exf6 {[%clk 0:04:45.5]} 14... Bc6 {[%clk 0:04:23.7]} 15. h4
{[%clk 0:04:43.9]} 15... g6 {[%clk 0:04:21.8]} 16. Bc4 {[%clk 0:04:42]} 16...
Bc5 {[%clk 0:04:19.3]} 17. Qe5 {[%clk 0:04:40.9]} 17... Bb4 {[%clk 0:04:16.3]}
18. Qe2 {[%clk 0:04:35.3]} 18... O-O {[%clk 0:03:51.8]} 19. Bh6 {[%clk
0:04:33.4]} 19... Bxg2 {[%clk 0:03:32.3]} 20. Rhg1 {[%clk 0:04:28]} 20... Bf3
{[%clk 0:03:24.4]} 21. Qxf3 {[%clk 0:04:25.4]} 21... Rxc4 {[%clk 0:03:22.4]} 22.
Bxf8 {[%clk 0:04:24.4]} 22... Bxf8 {[%clk 0:03:21]} 23. Kb1 {[%clk 0:04:22.4]}
23... Rxh4 {[%clk 0:02:59.3]} 24. Qxb7 {[%clk 0:04:12]} 24... Rb4 {[%clk
0:02:52.6]} 25. Qc8 {[%clk 0:04:11.1]} 25... Qe5 {[%clk 0:02:34.8]} 26. Qxf8+
{[%clk 0:04:09.7]} 26... Kxf8 {[%clk 0:02:33.7]} 27. Rd8# {[%clk 0:04:09.6]} 1-0

[Event "Live Chess"]
[Site "Chess.com"]
[Date "2023.05.21"]
[Round "-"]
[White "seasidecastle27"]
[Black "hturner40"]
[Result "1-0"]
[WhiteElo "1879"]
[BlackElo "1773"]
[TimeControl "300"]
[EndTime "4:44:40 PDT"]
[Termination "seasidecastle27 won by resignation"]

1. d4 {[%clk 0:04:58.6]} 1... Nf6 {[%clk 0:04:57.6]} 2. Nf3 {[%clk 0:04:57.5]}
2... g6 {[%clk 0:04:55.9]} 3. Bg5 {[%clk 0:04:55.4]} 3... Ne4 {[%clk 0:04:53.1]}
4. Bf4 {[%clk 0:04:51.4]} 4... Bg7 {[%clk 0:04:51.3]} 5. Nbd2 {[%clk 0:04:49.4]}
5... d5 {[%clk 0:04:36.4]} 6. e3 {[%clk 0:04:47.4]} 6... c5 {[%clk 0:04:26.5]}
7. c3 {[%clk 0:04:44.1]} 7... Nc6 {[%clk 0:04:20.1]} 8. Bd3 {[%clk 0:04:41.6]}
8... f5 {[%clk 0:04:17.9]} 9. Ne5 {[%clk 0:04:36.6]} 9... Nxe5 {[%clk
0:04:07.6]} 10. dxe5 {[%clk 0:04:32.7]} 10... e6 {[%clk 0:03:52.1]} 11. f3
{[%clk 0:04:28.9]} 11... Ng5 {[%clk 0:03:50.1]} 12. Bb5+ {[%clk 0:04:22]} 12...
Kf8 {[%clk 0:03:46.5]} 13. Bg3 {[%clk 0:04:07.2]} 13... Nf7 {[%clk 0:03:43.1]}
14. f4 {[%clk 0:04:05.7]} 14... Qb6 {[%clk 0:03:28.9]} 15. c4 {[%clk 0:03:47.4]}
15... a6 {[%clk 0:03:14.5]} 16. Ba4 {[%clk 0:03:43.2]} 16... dxc4 {[%clk
0:03:00]} 17. O-O {[%clk 0:03:35.4]} 17... Qd8 {[%clk 0:02:37.9]} 18. Qc2 {[%clk
0:03:21.1]} 18... b5 {[%clk 0:02:33]} 19. Rfd1 {[%clk 0:03:02.5]} 19... Qc7
{[%clk 0:01:50.5]} 20. Nxc4 {[%clk 0:02:48]} 20... bxc4 {[%clk 0:01:42.4]} 21.
Qxc4 {[%clk 0:02:46.2]} 21... Bb7 {[%clk 0:01:40.8]} 22. Rd7 {[%clk 0:02:41.2]}
22... Bd5 {[%clk 0:01:28.4]} 23. Qc3 {[%clk 0:02:19.9]} 23... Qb6 {[%clk
0:01:13]} 24. Bh4 {[%clk 0:02:10.9]} 24... Ra7 {[%clk 0:00:59.6]} 25. Be7+
{[%clk 0:02:03.7]} 25... Ke8 {[%clk 0:00:57.1]} 26. Rxa7+ {[%clk 0:01:56.1]} 1-0

[Event "Live Chess"]
[Site "Chess.com"]
[Date "2023.05.21"]
[Round "-"]
[White "MarkLim1"]
[Black "WilliamofOrange16th"]
[Result "0-1"]
[WhiteElo "1678"]
[BlackElo "1873"]
[TimeControl "300"]
[EndTime "4:44:44 PDT"]
[Termination "WilliamofOrange16th won by resignation"]

1. d4 {[%clk 0:04:58.6]} 1... d5 {[%clk 0:04:52.3]} 2. Nf3 {[%clk 0:04:57.8]}
2... Nf6 {[%clk 0:04:50.1]} 3. c4 {[%clk 0:04:57.1]} 3... c6 {[%clk 0:04:49]} 4.
cxd5 {[%clk 0:04:56.3]} 4... cxd5 {[%clk 0:04:47.7]} 5. Nc3 {[%clk 0:04:55.9]}
5... Nc6 {[%clk 0:04:46.9]} 6. Bf4 {[%clk 0:04:55.2]} 6... e6 {[%clk 0:04:45.9]}
7. Rc1 {[%clk 0:04:53.3]} 7... Bd6 {[%clk 0:04:44.9]} 8. Bxd6 {[%clk 0:04:52.3]}
8... Qxd6 {[%clk 0:04:44.8]} 9. e3 {[%clk 0:04:51.7]} 9... a6 {[%clk 0:04:43.3]}
10. Be2 {[%clk 0:04:50]} 10... O-O {[%clk 0:04:42.2]} 11. O-O {[%clk 0:04:49.2]}
11... e5 {[%clk 0:04:41.5]} 12. dxe5 {[%clk 0:04:47.9]} 12... Nxe5 {[%clk
0:04:41.4]} 13. Nxe5 {[%clk 0:04:45.6]} 13... Qxe5 {[%clk 0:04:41.3]} 14. Bf3
{[%clk 0:04:44.9]} 14... Be6 {[%clk 0:04:40.3]} 15. Qd3 {[%clk 0:04:43]} 15...
Rfd8 {[%clk 0:04:36.2]} 16. Rfd1 {[%clk 0:04:42]} 16... Rd7 {[%clk 0:04:33]} 17.
Na4 {[%clk 0:04:38.1]} 17... Rc7 {[%clk 0:04:25.9]} 18. Rxc7 {[%clk 0:04:28.8]}
18... Qxc7 {[%clk 0:04:25.8]} 19. Nc3 {[%clk 0:04:25.8]} 19... Rd8 {[%clk
0:04:22.8]} 20. e4 {[%clk 0:04:17.3]} 20... d4 {[%clk 0:04:11.9]} 21. Ne2 {[%clk
0:04:16]} 21... Bxa2 {[%clk 0:04:03.9]} 22. Nxd4 {[%clk 0:04:14]} 22... Qb6
{[%clk 0:03:45.3]} 23. Qc3 {[%clk 0:03:58]} 23... Be6 {[%clk 0:03:16]} 24. Nxe6
{[%clk 0:03:33.5]} 24... Rxd1+ {[%clk 0:03:13.9]} 25. Bxd1 {[%clk 0:03:28.3]}
25... Qxe6 {[%clk 0:03:11.1]} 26. f3 {[%clk 0:03:26.4]} 26... Ne8 {[%clk
0:02:49.1]} 27. Be2 {[%clk 0:03:16]} 27... g6 {[%clk 0:02:36.1]} 28. Bc4 {[%clk
0:03:10.6]} 28... Qb6+ {[%clk 0:02:34]} 29. Kf1 {[%clk 0:03:09.6]} 29... Nd6
{[%clk 0:02:30.6]} 30. Qb3 {[%clk 0:02:52.2]} 30... Nxc4 {[%clk 0:02:24.6]} 31.
Qxc4 {[%clk 0:02:48.4]} 31... Qxb2 {[%clk 0:02:23.2]} 32. Qc8+ {[%clk
0:02:45.4]} 32... Kg7 {[%clk 0:02:22.5]} 33. Qc7 {[%clk 0:02:38]} 33... Qb5+
{[%clk 0:01:56.1]} 34. Kf2 {[%clk 0:02:36]} 34... a5 {[%clk 0:01:55.1]} 35. e5
{[%clk 0:02:34.2]} 35... b6 {[%clk 0:01:50.6]} 36. e6 {[%clk 0:02:31.5]} 36...
Qb2+ {[%clk 0:01:39.1]} 37. Kg3 {[%clk 0:02:24.6]} 37... Qf6 {[%clk 0:01:37.7]}
38. exf7 {[%clk 0:02:13.5]} 38... Qxf7 {[%clk 0:01:36.6]} 39. Qxb6 {[%clk
0:02:12.6]} 39... Qd5 {[%clk 0:01:27.3]} 40. Qc7+ {[%clk 0:02:08.4]} 40... Kg8
{[%clk 0:01:24.7]} 41. Qc8+ {[%clk 0:02:03.1]} 41... Kf7 {[%clk 0:01:19.3]} 42.
Qc7+ {[%clk 0:02:00.8]} 42... Kf6 {[%clk 0:01:17.9]} 43. Qb6+ {[%clk 0:01:55.8]}
43... Kf5 {[%clk 0:01:11.7]} 44. Qb1+ {[%clk 0:01:51.7]} 44... Ke6 {[%clk
0:01:10.6]} 45. Qb6+ {[%clk 0:01:49.1]} 45... Qd6+ {[%clk 0:01:10]} 46. Qxd6+
{[%clk 0:01:42.5]} 46... Kxd6 {[%clk 0:01:09.9]} 47. Kf2 {[%clk 0:01:41.9]}
47... a4 {[%clk 0:01:09.1]} 48. Ke1 {[%clk 0:01:41.1]} 48... a3 {[%clk
0:01:07.5]} 49. Kd2 {[%clk 0:01:40.4]} 49... a2 {[%clk 0:01:07]} 0-1

[Event "Live Chess"]
[Site "Chess.com"]
[Date "2023.05.21"]
[Round "-"]
[White "defenderalist"]
[Black "manthanit"]
[Result "1-0"]
[WhiteElo "1675"]
[BlackElo "1078"]
[TimeControl "300"]
[EndTime "4:44:47 PDT"]
[Termination "defenderalist won by resignation"]

1. e4 {[%clk 0:04:59]} 1... e6 {[%clk 0:04:58.2]} 2. g3 {[%clk 0:04:52.1]} 2...
d5 {[%clk 0:04:54.8]} 3. Bg2 {[%clk 0:04:50]} 3... Nf6 {[%clk 0:04:52]} 4. e5
{[%clk 0:04:48.3]} 4... Nfd7 {[%clk 0:04:41]} 5. d4 {[%clk 0:04:46.7]} 5... b6
{[%clk 0:04:40.2]} 6. Ne2 {[%clk 0:04:42.3]} 6... Bb7 {[%clk 0:04:31.5]} 7. O-O
{[%clk 0:04:36.1]} 7... Na6 {[%clk 0:04:28.1]} 8. f4 {[%clk 0:04:32.7]} 8... c5
{[%clk 0:04:24.7]} 9. c3 {[%clk 0:04:31.8]} 9... Be7 {[%clk 0:04:16.8]} 10. f5
{[%clk 0:04:30.9]} 10... cxd4 {[%clk 0:04:10.7]} 11. cxd4 {[%clk 0:04:29.7]}
11... O-O {[%clk 0:04:09.1]} 12. Nbc3 {[%clk 0:04:22.6]} 12... Rb8 {[%clk
0:03:35.9]} 13. f6 {[%clk 0:03:59.2]} 13... Bxf6 {[%clk 0:03:25.5]} 14. exf6
{[%clk 0:03:53.3]} 14... Nxf6 {[%clk 0:03:25.1]} 15. Bg5 {[%clk 0:03:51]} 15...
h6 {[%clk 0:03:21.5]} 16. Bxf6 {[%clk 0:03:49.5]} 16... gxf6 {[%clk 0:03:18.1]}
17. Nf4 {[%clk 0:03:37]} 17... e5 {[%clk 0:03:08.3]} 18. Nh5 {[%clk 0:03:31.1]}
18... exd4 {[%clk 0:03:02.4]} 19. Qg4+ {[%clk 0:03:28.2]} 1-0

[Event "Live Chess"]
[Site "Chess.com"]
[Date "2023.05.21"]
[Round "-"]
[White "diana21strabt"]
[Black "ossie57"]
[Result "0-1"]
[WhiteElo "1752"]
[BlackElo "1911"]
[TimeControl "300"]
[EndTime "4:44:49 PDT"]
[Termination "ossie57 won by resignation"]

1. e4 {[%clk 0:04:58.7]} 1... e5 {[%clk 0:04:58.8]} 2. Nf3 {[%clk 0:04:57.6]}
2... Nc6 {[%clk 0:04:58]} 3. d4 {[%clk 0:04:56.6]} 3... exd4 {[%clk 0:04:57]} 4.
Bc4 {[%clk 0:04:55.8]} 4... Nf6 {[%clk 0:04:50.1]} 5. O-O {[%clk 0:04:52.9]}
5... Be7 {[%clk 0:04:48.4]} 6. Nxd4 {[%clk 0:04:51.4]} 6... O-O {[%clk
0:04:46.9]} 7. Nxc6 {[%clk 0:04:50.2]} 7... dxc6 {[%clk 0:04:43.7]} 8. Nc3
{[%clk 0:04:48.8]} 8... Qxd1 {[%clk 0:04:41.7]} 9. Rxd1 {[%clk 0:04:48.1]} 9...
Bg4 {[%clk 0:04:39.2]} 10. f3 {[%clk 0:04:46.3]} 10... Be6 {[%clk 0:04:35]} 11.
Bxe6 {[%clk 0:04:44.5]} 11... fxe6 {[%clk 0:04:34.9]} 12. Bg5 {[%clk 0:04:41.4]}
12... Rad8 {[%clk 0:04:33.6]} 13. Rxd8 {[%clk 0:04:38.9]} 13... Rxd8 {[%clk
0:04:32.5]} 14. Rd1 {[%clk 0:04:37.8]} 14... Rxd1+ {[%clk 0:04:28]} 15. Nxd1
{[%clk 0:04:36.6]} 15... h6 {[%clk 0:04:20.3]} 16. Bxf6 {[%clk 0:04:34.4]} 16...
gxf6 {[%clk 0:04:17.4]} 17. Kf2 {[%clk 0:04:32.6]} 17... Bd6 {[%clk 0:04:15.7]}
18. g3 {[%clk 0:04:30.3]} 18... Kf7 {[%clk 0:04:15]} 19. Ke2 {[%clk 0:04:29.4]}
19... b5 {[%clk 0:04:14.3]} 20. Kd3 {[%clk 0:04:28.4]} 20... h5 {[%clk
0:04:13.6]} 21. c4 {[%clk 0:04:26.5]} 21... h4 {[%clk 0:04:12.2]} 22. f4 {[%clk
0:04:21.4]} 22... hxg3 {[%clk 0:04:10.3]} 23. hxg3 {[%clk 0:04:20.3]} 23... e5
{[%clk 0:04:05.6]} 24. f5 {[%clk 0:04:17.4]} 24... b4 {[%clk 0:04:04.5]} 25. b3
{[%clk 0:04:10.2]} 25... Bc5 {[%clk 0:04:02.4]} 26. Nb2 {[%clk 0:04:07.5]} 26...
Kg7 {[%clk 0:03:50.2]} 27. Na4 {[%clk 0:04:03.6]} 27... Bf2 {[%clk 0:03:47]} 28.
g4 {[%clk 0:04:02.2]} 28... Kh6 {[%clk 0:03:45.4]} 29. Ke2 {[%clk 0:03:59]}
29... Bd4 {[%clk 0:03:41.3]} 30. Kd3 {[%clk 0:03:51]} 30... Kg5 {[%clk 0:03:40]}
31. c5 {[%clk 0:03:49.8]} 31... Kxg4 {[%clk 0:03:38.2]} 32. Kc4 {[%clk
0:03:48.7]} 32... a5 {[%clk 0:03:34.7]} 33. Kd3 {[%clk 0:03:43]} 33... Kf4
{[%clk 0:03:34]} 34. a3 {[%clk 0:03:35.7]} 34... bxa3 {[%clk 0:03:29.8]} 35. Nc3
{[%clk 0:03:33.3]} 35... Bxc3 {[%clk 0:03:25.2]} 36. Kxc3 {[%clk 0:03:31.9]}
36... Kxe4 {[%clk 0:03:24.6]} 0-1

[Event "Live Chess"]
[Site "Chess.com"]
[Date "2023.05.21"]
[Round "-"]
[White "SupremeTactician"]
[Black "Mikhail_Golubev"]
[Result "1-0"]
[WhiteElo "2239"]
[BlackElo "2448"]
[TimeControl "300"]
[EndTime "4:44:50 PDT"]
[Termination "SupremeTactician won on time"]

1. e4 {[%clk 0:04:59.8]} 1... c5 {[%clk 0:04:57.9]} 2. Nf3 {[%clk 0:04:58.6]}
2... d6 {[%clk 0:04:56.9]} 3. d4 {[%clk 0:04:57.4]} 3... cxd4 {[%clk 0:04:55.5]}
4. Nxd4 {[%clk 0:04:57.3]} 4... Nf6 {[%clk 0:04:53.4]} 5. Nc3 {[%clk 0:04:55.4]}
5... g6 {[%clk 0:04:52.7]} 6. Be2 {[%clk 0:04:53.3]} 6... Bg7 {[%clk 0:04:51.7]}
7. O-O {[%clk 0:04:52.7]} 7... Nc6 {[%clk 0:04:50.6]} 8. Nxc6 {[%clk 0:04:51.1]}
8... bxc6 {[%clk 0:04:48.6]} 9. Be3 {[%clk 0:04:50.2]} 9... O-O {[%clk 0:04:46]}
10. a3 {[%clk 0:04:49.4]} 10... d5 {[%clk 0:04:37.2]} 11. exd5 {[%clk
0:04:48.5]} 11... Nxd5 {[%clk 0:04:31.6]} 12. Nxd5 {[%clk 0:04:46.6]} 12... cxd5
{[%clk 0:04:24.8]} 13. c3 {[%clk 0:04:45.4]} 13... e5 {[%clk 0:04:18.2]} 14. Qb3
{[%clk 0:04:41.9]} 14... Be6 {[%clk 0:04:13.8]} 15. Bc5 {[%clk 0:04:36.1]} 15...
Re8 {[%clk 0:04:04.2]} 16. Bb5 {[%clk 0:04:35]} 16... Qb8 {[%clk 0:03:30.2]} 17.
Qa4 {[%clk 0:04:22.7]} 17... Rc8 {[%clk 0:03:28.6]} 18. Bc6 {[%clk 0:04:17.5]}
18... Qxb2 {[%clk 0:02:21.2]} 19. Bxa8 {[%clk 0:04:09.2]} 19... Rxa8 {[%clk
0:02:20.6]} 20. Qb4 {[%clk 0:04:00.6]} 20... Qe2 {[%clk 0:02:04.6]} 21. Rfe1
{[%clk 0:03:53.4]} 21... Qa6 {[%clk 0:01:59.9]} 22. Rab1 {[%clk 0:03:51.5]}
22... Rc8 {[%clk 0:01:56.3]} 23. Qb5 {[%clk 0:03:40.4]} 23... Qxb5 {[%clk
0:01:42.2]} 24. Rxb5 {[%clk 0:03:40.3]} 24... a6 {[%clk 0:01:35.3]} 25. Ra5
{[%clk 0:03:36.6]} 25... h5 {[%clk 0:01:32.2]} 26. Bb4 {[%clk 0:03:30.7]} 26...
Rc6 {[%clk 0:01:28]} 27. Rc5 {[%clk 0:03:27.7]} 27... Rb6 {[%clk 0:01:21.6]} 28.
h3 {[%clk 0:03:22.6]} 28... Kh7 {[%clk 0:01:20.3]} 29. Rc7 {[%clk 0:03:16.2]}
29... e4 {[%clk 0:01:18.4]} 30. Rc1 {[%clk 0:02:50.8]} 30... Be5 {[%clk
0:01:15.2]} 31. Ra7 {[%clk 0:02:43.7]} 31... g5 {[%clk 0:01:11.3]} 32. a4 {[%clk
0:02:32.1]} 32... Rc6 {[%clk 0:01:09.2]} 33. Be7 {[%clk 0:02:20.2]} 33... Kg6
{[%clk 0:01:06.5]} 34. Ra8 {[%clk 0:02:08.3]} 34... d4 {[%clk 0:01:00.5]} 35.
Rg8+ {[%clk 0:02:05.9]} 35... Kh7 {[%clk 0:00:57.2]} 36. Rxg5 {[%clk 0:02:05.2]}
36... Bf4 {[%clk 0:00:55.3]} 37. Rxh5+ {[%clk 0:01:58.1]} 37... Kg6 {[%clk
0:00:53.4]} 38. Rc5 {[%clk 0:01:42.1]} 38... Rxc5 {[%clk 0:00:51.9]} 39. Bxc5
{[%clk 0:01:42]} 39... d3 {[%clk 0:00:48.3]} 40. Rb1 {[%clk 0:01:38.1]} 40... d2
{[%clk 0:00:42.6]} 41. Be3 {[%clk 0:01:37]} 41... Bxe3 {[%clk 0:00:41]} 42. fxe3
{[%clk 0:01:36.9]} 42... Bb3 {[%clk 0:00:40.1]} 43. Kf2 {[%clk 0:01:33.4]} 43...
d1=Q {[%clk 0:00:36.6]} 44. Rxd1 {[%clk 0:01:32.6]} 44... Bxd1 {[%clk
0:00:35.6]} 45. Kg3 {[%clk 0:01:30.6]} 45... Kf5 {[%clk 0:00:31.8]} 46. a5
{[%clk 0:01:29.4]} 46... Be2 {[%clk 0:00:28.9]} 47. Kh4 {[%clk 0:01:28.1]} 47...
f6 {[%clk 0:00:22.8]} 48. g4+ {[%clk 0:01:26]} 48... Ke5 {[%clk 0:00:20.2]} 49.
Kh5 {[%clk 0:01:25.5]} 49... f5 {[%clk 0:00:19.2]} 50. Kg5 {[%clk 0:01:24.8]}
50... fxg4 {[%clk 0:00:17.5]} 51. hxg4 {[%clk 0:01:24]} 51... Ke6 {[%clk
0:00:14.6]} 52. Kf4 {[%clk 0:01:23]} 52... Bf3 {[%clk 0:00:13.6]} 53. g5 {[%clk
0:01:21.2]} 53... Kf7 {[%clk 0:00:11.4]} 54. c4 {[%clk 0:01:17.5]} 54... Be2
{[%clk 0:00:10.1]} 55. c5 {[%clk 0:01:15]} 55... Bf3 {[%clk 0:00:08.9]} 56. c6
{[%clk 0:01:11.3]} 56... Ke6 {[%clk 0:00:08.1]} 57. g6 {[%clk 0:01:10.5]} 57...
Bh5 {[%clk 0:00:06.8]} 58. g7 {[%clk 0:01:08.6]} 58... Bf7 {[%clk 0:00:05.7]}
59. Kxe4 {[%clk 0:01:07.9]} 59... Kd6 {[%clk 0:00:05]} 60. Kf5 {[%clk
0:01:07.3]} 60... Kxc6 {[%clk 0:00:04.4]} 61. Kf6 {[%clk 0:01:06.9]} 61... Bg8
{[%clk 0:00:03.4]} 62. e4 {[%clk 0:01:06.3]} 62... Kd7 {[%clk 0:00:01.9]} 63. e5
{[%clk 0:01:05.6]} 63... Be6 {[%clk 0:00:01.2]} 64. Kg5 {[%clk 0:01:00.8]} 1-0

[Event "Live Chess"]
[Site "Chess.com"]
[Date "2023.05.21"]
[Round "-"]
[White "EdenHazard8"]
[Black "chrisbradgate"]
[Result "1-0"]
[WhiteElo "1933"]
[BlackElo "865"]
[TimeControl "300"]
[EndTime "4:44:50 PDT"]
[Termination "EdenHazard8 won by checkmate"]

1. e4 {[%clk 0:04:58.9]} 1... e5 {[%clk 0:04:58.1]} 2. Qh5 {[%clk 0:04:57.7]}
2... Nc6 {[%clk 0:04:53.1]} 3. Bc4 {[%clk 0:04:56.8]} 3... g6 {[%clk 0:04:48.8]}
4. Qf3 {[%clk 0:04:56.2]} 4... Nf6 {[%clk 0:04:47.8]} 5. Ne2 {[%clk 0:04:55.6]}
5... Bc5 {[%clk 0:04:39]} 6. g4 {[%clk 0:04:51.8]} 6... O-O {[%clk 0:04:26.8]}
7. g5 {[%clk 0:04:45.7]} 7... d5 {[%clk 0:04:01.8]} 8. gxf6 {[%clk 0:04:39.7]}
8... dxc4 {[%clk 0:03:57.7]} 9. Nbc3 {[%clk 0:04:38.3]} 9... Bd4 {[%clk
0:03:47.9]} 10. Nd5 {[%clk 0:04:35.9]} 10... Bxf2+ {[%clk 0:03:08.7]} 11. Qxf2
{[%clk 0:04:32.9]} 11... Nd4 {[%clk 0:03:06.4]} 12. Nxd4 {[%clk 0:04:27.5]}
12... exd4 {[%clk 0:03:05.5]} 13. Qh4 {[%clk 0:04:23]} 13... c6 {[%clk
0:02:51.3]} 14. Qh6 {[%clk 0:04:20]} 14... cxd5 {[%clk 0:02:06.1]} 15. Qg7#
{[%clk 0:04:18.2]} 1-0

[Event "Live Chess"]
[Site "Chess.com"]
[Date "2023.05.21"]
[Round "-"]
[White "elephantgerrald"]
[Black "domrobson"]
[Result "0-1"]
[WhiteElo "686"]
[BlackElo "1718"]
[TimeControl "300"]
[EndTime "4:44:55 PDT"]
[Termination "domrobson won by checkmate"]

1. e4 {[%clk 0:04:57.4]} 1... e5 {[%clk 0:04:59.4]} 2. d3 {[%clk 0:04:56.1]}
2... Nc6 {[%clk 0:04:57.8]} 3. Nc3 {[%clk 0:04:54.9]} 3... Nf6 {[%clk
0:04:57.2]} 4. Nf3 {[%clk 0:04:53.4]} 4... Bb4 {[%clk 0:04:56.4]} 5. Bd2 {[%clk
0:04:52.3]} 5... d6 {[%clk 0:04:53.9]} 6. g3 {[%clk 0:04:51.3]} 6... Bg4 {[%clk
0:04:53.1]} 7. Bg2 {[%clk 0:04:45.6]} 7... Nd4 {[%clk 0:04:51]} 8. O-O {[%clk
0:04:39]} 8... Qc8 {[%clk 0:04:41.5]} 9. a3 {[%clk 0:04:34]} 9... Bxc3 {[%clk
0:04:39.5]} 10. Bxc3 {[%clk 0:04:20.7]} 10... c5 {[%clk 0:04:35.5]} 11. Bxd4
{[%clk 0:04:17.2]} 11... cxd4 {[%clk 0:04:33.6]} 12. c3 {[%clk 0:04:15.5]} 12...
dxc3 {[%clk 0:04:31.7]} 13. bxc3 {[%clk 0:04:14.4]} 13... O-O {[%clk 0:04:31.2]}
14. c4 {[%clk 0:04:12.1]} 14... Ne8 {[%clk 0:04:11.8]} 15. Qd2 {[%clk
0:04:03.6]} 15... Bh3 {[%clk 0:04:07.8]} 16. Qd1 {[%clk 0:03:46.5]} 16... f5
{[%clk 0:04:04.3]} 17. exf5 {[%clk 0:03:44.9]} 17... Bxf5 {[%clk 0:04:01.9]} 18.
Qb3 {[%clk 0:03:39.6]} 18... Bg4 {[%clk 0:03:56.4]} 19. c5+ {[%clk 0:03:37.7]}
19... Be6 {[%clk 0:03:55]} 20. Qb4 {[%clk 0:03:29]} 20... a5 {[%clk 0:03:47.6]}
21. Qb6 {[%clk 0:03:24]} 21... Qxc5 {[%clk 0:03:39.8]} 22. Qxc5 {[%clk
0:03:20.5]} 22... dxc5 {[%clk 0:03:37.2]} 23. Nxe5 {[%clk 0:03:16.5]} 23... Nd6
{[%clk 0:03:29.5]} 24. Rab1 {[%clk 0:03:05.2]} 24... Rab8 {[%clk 0:03:20.3]} 25.
f4 {[%clk 0:02:52]} 25... c4 {[%clk 0:03:02.5]} 26. dxc4 {[%clk 0:02:42.7]}
26... Bxc4 {[%clk 0:03:00.9]} 27. Nd7 {[%clk 0:02:37.4]} 27... Bxf1 {[%clk
0:02:57.8]} 28. Nxf8 {[%clk 0:02:32.8]} 28... Bxg2 {[%clk 0:02:54.3]} 29. Kxg2
{[%clk 0:02:29.2]} 29... Rxf8 {[%clk 0:02:52.3]} 30. Rb6 {[%clk 0:02:24.8]}
30... Nc4 {[%clk 0:02:50.4]} 31. Rxb7 {[%clk 0:02:21.9]} 31... Nxa3 {[%clk
0:02:48.8]} 32. Ra7 {[%clk 0:02:20.5]} 32... Nc4 {[%clk 0:02:47.3]} 33. h4
{[%clk 0:02:17]} 33... h6 {[%clk 0:02:42]} 34. g4 {[%clk 0:02:09.6]} 34... Rb8
{[%clk 0:02:41.1]} 35. g5 {[%clk 0:02:04.7]} 35... hxg5 {[%clk 0:02:39.4]} 36.
hxg5 {[%clk 0:02:03.1]} 36... Rb4 {[%clk 0:02:32.4]} 37. Ra8+ {[%clk 0:02:00.6]}
37... Kf7 {[%clk 0:02:30.8]} 38. Ra7+ {[%clk 0:01:58.6]} 38... Kg6 {[%clk
0:02:28.9]} 39. Ra6+ {[%clk 0:01:55.6]} 39... Kf5 {[%clk 0:02:26]} 40. Kf3
{[%clk 0:01:53.5]} 40... Rb3+ {[%clk 0:02:21.6]} 41. Kg2 {[%clk 0:01:50.6]}
41... Kxf4 {[%clk 0:02:20.9]} 42. g6 {[%clk 0:01:49]} 42... Rg3+ {[%clk
0:02:13.7]} 43. Kf2 {[%clk 0:01:47.4]} 43... Rg5 {[%clk 0:02:09.7]} 44. Rc6
{[%clk 0:01:43.9]} 44... Ne5 {[%clk 0:02:06.1]} 45. Ra6 {[%clk 0:01:39.3]} 45...
Nxg6 {[%clk 0:02:04.5]} 46. Ke2 {[%clk 0:01:36.8]} 46... Re5+ {[%clk 0:02:02.4]}
47. Kd2 {[%clk 0:01:34.9]} 47... Nh4 {[%clk 0:02:00.8]} 48. Kc3 {[%clk
0:01:31.2]} 48... g5 {[%clk 0:01:59.5]} 49. Rf6+ {[%clk 0:01:28.5]} 49... Rf5
{[%clk 0:01:58.1]} 50. Ra6 {[%clk 0:01:26.3]} 50... g4 {[%clk 0:01:57.1]} 51.
Rd6 {[%clk 0:01:22.3]} 51... g3 {[%clk 0:01:56.1]} 52. Rd1 {[%clk 0:01:19.9]}
52... g2 {[%clk 0:01:53.5]} 53. Rg1 {[%clk 0:01:18.1]} 53... Kf3 {[%clk
0:01:52.3]} 54. Kb3 {[%clk 0:01:14.4]} 54... Kf2 {[%clk 0:01:51.4]} 55. Rxg2+
{[%clk 0:01:12.7]} 55... Kxg2 {[%clk 0:01:49.8]} 56. Ka4 {[%clk 0:01:11.3]}
56... Kf3 {[%clk 0:01:49.1]} 57. Ka3 {[%clk 0:01:10.2]} 57... Kf2 {[%clk
0:01:48.4]} 58. Ka4 {[%clk 0:01:09.2]} 58... Ke3 {[%clk 0:01:48.3]} 59. Ka3
{[%clk 0:01:07.9]} 59... Kd4 {[%clk 0:01:48]} 60. Ka4 {[%clk 0:01:07]} 60... Kc4
{[%clk 0:01:47]} 61. Ka3 {[%clk 0:01:06.2]} 61... Kb5 {[%clk 0:01:40.6]} 62. Ka2
{[%clk 0:01:05]} 62... Rf3 {[%clk 0:01:39.3]} 63. Ka1 {[%clk 0:01:03.7]} 63...
Rf2 {[%clk 0:01:38.1]} 64. Kb1 {[%clk 0:01:02.3]} 64... Nf3 {[%clk 0:01:36.3]}
65. Ka1 {[%clk 0:01:00.8]} 65... Rd2 {[%clk 0:01:33.1]} 66. Kb1 {[%clk
0:00:59.6]} 66... Kb4 {[%clk 0:01:32]} 67. Ka1 {[%clk 0:00:57.4]} 67... Kb3
{[%clk 0:01:30.9]} 68. Kb1 {[%clk 0:00:55.9]} 68... Rd1# {[%clk 0:01:30.2]} 0-1